[Event "ESP-chT Honor Division 2022"]
[Site "Linares"]
[Date "2022.09.22"]
[Round "6.21"]
[White "Kuzubov, Yuriy"]
[Black "Iturrizaga Bonelli, Eduardo"]
[Result "0-1"]
[ECO "D37"]
[WhiteElo "2627"]
[BlackElo "2630"]
[Annotator "TA"]
[PlyCount "146"]
[EventDate "2022.09.17"]
[EventType "team-tourn"]
[EventCountry "ESP"]
[SourceTitle "playchess.com"]
[Source "ChessBase"]
[SourceQuality "1"]
[TimeControl "5400+30"]

{[%evp 13,146,0,17,29,29,15,24,20,20,20,70,20,64,31,47,35,48,16,21,17,15,19,44,12,0,0,0,-3,-5,-41,79,77,89,57,59,55,230,248,252,238,219,239,228,206,185,171,192,202,190,144,569,318,618,0,0,0,0,0,0,0,0,0,0,0,0,0,0,0,0,0,0,0,0,0,0,0,0,0,0,0,0,-290,-287,-290,-230,-242,-214,-229,-222,-492,-508,-494,-482,-435,-428,-771,-761,-748,-766,-764,-759,-731,-741,-731,0,-481,-486,-752,-741,-897,-746,-864,-873,-902,-846,-835,-829,-785,-621,-960,-955,-955,-954,-939,-882,-1119,-1056,-1224,-1156,-5535,-4379,-29976,-29977,-29972,-29965]} 1. d4 Nf6 {[%emt 0:01:59]} 2. c4 {[%emt 0:00:09]} e6 {[%emt 0:00:04]} 3. Nf3 {[%emt 0:00:07]} d5 {[%emt 0:00:37]} 4. Nc3 {[%emt 0:00:13]} Be7 {[%emt 0:00:08]} 5. cxd5 {[%emt 0:01:19]} exd5 {[%emt 0:00:25]} 6. Bf4 {[%emt 0:00:41]} c6 {[%emt 0:00:37]} 7. Qc2 {[%emt 0:00:19]} Nbd7 {[%emt 0:04:08]} 8. h3 {[%emt 0:04:29] D35: Queen's Gambit Declined: Exchange Variation.} O-O {[%emt 0:19:29]} 9. e3 {[%emt 0:00:10]} b5 $5 {[%emt 0:02:28][%mdl 4] A promising side line.} 10. Bd3 {[%emt 0:01:36] White has an edge.} Bb7 {[%emt 0:01:02]} 11. O-O {[%emt 0:01:23] [#]} a5 $146 {[%emt 0:07:00]} ({Black should play} 11... g6 $11) ({Predecessor:} 11... a6 12. Ne5 h6 13. Rfd1 c5 14. Nxd7 Qxd7 15. dxc5 Qc6 16. Ne2 Qxc5 17. Qxc5 Bxc5 {1-0 (64) Lajthajm,B (2401)-Damia,A (2242) Novi Sad 2016}) 12. Rac1 {[%emt 0:03:08]} ({White should try} 12. Ne5 $14) 12... a4 {[%emt 0:01:49]} 13. a3 {[%emt 0:04:58]} (13. Ne5 {feels hotter.} Re8 14. Ne2 Ra6 15. Ng3) 13... Rc8 {[%emt 0:11:50]} 14. Rfd1 {[%emt 0:03:26]} g6 {[%emt 0:01:21]} 15. Ne5 {[%emt 0:16:31]} Nxe5 {[%emt 0:06:43]} 16. Bxe5 {[%emt 0:00:50]} Nd7 {[%emt 0:00:08]} 17. Bh2 {[%emt 0:01:14]} f5 {[%emt 0:02:57]} 18. Ne2 {[%emt 0:12:07][%cal Bc3e2,Be2f4,Bf4h5][%mdl 32]} Nb6 {[%emt 0:09:43]} 19. Nf4 {[%emt 0:17:49]} Bd6 {[%emt 0:02:49]} 20. Be2 {[%emt 0:01:18]} Qc7 {[%emt 0:01:41]} 21. Kh1 {[%emt 0:02:59]} Rfe8 {[%emt 0:01:03] Prevents Ne6.} (21... Qb8 $1 $15 {stays ahead.}) 22. g4 $1 $16 {[%emt 0:16:15]} g5 {[%emt 0:00:25] [#]} 23. Nh5 {[%emt 0:00:45][%cal Oc2f5]} Bxh2 {[%emt 0:00:23]} 24. Qxf5 {[%emt 0:00:48]} Bd6 $2 {[%emt 0:01:43]} (24... Rf8 $2 25. Qxg5+ Kh8 26. f4 $18) (24... Be5 $1 $14) 25. Qxg5+ $18 {[%emt 0:00:49]} Kh8 {[%emt 0:00:06] Strongly threatening ...Rf8.} 26. Qf6+ {[%emt 0:00:11]} Kg8 {[%emt 0:00:04] White must now prevent ...Rf8.} 27. g5 $1 {[%emt 0:08:07][%mdl 1024] White has strong compensation.} Qe7 {[%emt 0:01:16]} 28. Rg1 $1 {[%emt 0:01:05] g6 is the strong threat.} Qe4+ {[%emt 0:02:34]} 29. Rg2 $1 {[%emt 0:00:58][%csl Gh5][%cal Rf6g7]} Qg6 {[%emt 0:00:06] [#] Prevents Qg7+.} 30. Bd3 $1 {[%emt 0:00:38][%mdl 512]} Re4 {[%emt 0:00:18]} (30... Qxh5 31. g6 Qxh3+ 32. Kg1) 31. f3 $1 {[%emt 0:00:58][%mdl 64] Pin} (31. Bxe4 dxe4 32. Qxg6+ hxg6 33. Nf6+ Kg7 $11) 31... Be7 $2 {[%emt 0:18:49][%mdl 8192]} (31... Qxh5 32. g6 Rc7 33. Qd8+ Bf8 34. gxh7+ Kxh7 35. Qxc7+ Kh8 36. fxe4 dxe4 37. Rf1) (31... Nd7 $16 {is tougher.} 32. fxe4 (32. Bxe4 dxe4 33. Qxg6+ hxg6 $11) 32... Nxf6 33. gxf6 Kf7 34. Rxg6 hxg6) 32. fxe4 {[%emt 0:00:20]} Qxh5 $2 {[%emt 0:02:11]} (32... Bxf6 33. gxf6 dxe4 34. Bxe4 (34. Rxg6+ hxg6 35. Bxe4 gxh5 $11) 34... Qxg2+ 35. Kxg2 Kf7) 33. Qxe7 $2 {[%emt 0:00:07]} (33. Qh6 $18 Qxh6 34. gxh6+ Kf7 35. Rg7+ Ke6 36. e5) 33... Qxh3+ $11 {[%emt 0:00:03]} 34. Kg1 {[%emt 0:00:33][%cal Bh1g1,Bg1h2,Bh2h3,Bh3g4,Bg4g5,Bg5h5][%mdl 32]} Qxe3+ {[%emt 0:00:03]} 35. Kh2 {[%emt 0:00:17]} Qf4+ {[%emt 0:00:32]} 36. Rg3 {[%emt 0:00:33] White wants to mate with Rf1.} Qd2+ {[%emt 0:00:29]} (36... Qxc1 $2 37. e5 Qd2+ 38. Kh3 Qxd3 39. Rxd3 $18) 37. Kh3 {[%emt 0:00:25]} Qxc1 {[%emt 0:00:02] Really sharp!} 38. Qe6+ {[%emt 0:00:42]} Kg7 {[%emt 0:00:53]} 39. Qf6+ {[%emt 0:00:53]} Kg8 {[%emt 0:00:01]} 40. g6 {[%emt 0:00:37]} Qh1+ {[%emt 0:00:44]} 41. Kg4 {[%emt 0:00:06]} h5+ {[%emt 0:00:08]} (41... dxe4 $2 42. Qf7+ Kh8 43. g7#) 42. Kg5 $1 {[%emt 0:00:20] Intending Qf7+ and mate.} Qc1+ $1 {[%emt 0:00:11]} (42... Rf8 43. Qe6+ (43. Qe7 Qc1+ 44. Kxh5 Qh1+ 45. Kg5 Bc8 $17) 43... Kh8 44. Kh6 (44. Qe7 Qc1+ 45. Kxh5 Qh1+ 46. Kg5 Qc1+ 47. Kh5 Qh1+ 48. Kg5 Qc1+ 49. Kh5 $11) 44... Qc1+ 45. Rg5) 43. Kxh5 {[%emt 0:00:22] Qf7+ would kill now.} Qh1+ {[%emt 0:00:07]} (43... Rf8 44. Qe6+ Kg7 45. Qe7+) 44. Kg5 {[%emt 0:00:37] Threatening mate with Qf7+.} Rf8 {[%emt 0:01:25] Prevents Qf7+.} (44... dxe4 $2 {is a self mate.} 45. Qf7+ Kh8 46. g7+ Kh7 47. g8=R#) 45. Qe6+ {[%emt 0:00:19]} Kg7 {[%emt 0:00:02]} 46. Qe7+ {[%emt 0:00:56]} Kg8 {[%emt 0:00:03]} 47. g7 $2 {[%emt 0:00:48][%mdl 8192]} (47. Qxb7 $11 Qc1+ 48. Kh5 Qh1+ 49. Kg4 Qd1+ 50. Kh4 Qh1+ 51. Rh3 Qe1+ 52. Kg4 Qd1+ 53. Kg5 Qd2+ 54. Kh5 Qd1+ 55. Kh6 Qd2+ 56. Kh5 Qd1+ 57. Kh6 Qd2+ 58. Kh5) 47... Rf7 $19 {[%emt 0:00:58]} 48. Qe8+ {[%emt 0:00:39]} Kxg7 {[%emt 0:00:03][%cal Bg8g7,Bg7f8,Bf8e8,Be8d7,Bd7c7,Bc7b6][%mdl 32]} 49. Qe5+ {[%emt 0:00:12]} Kf8 {[%emt 0:00:07]} 50. Qd6+ {[%emt 0:00:32] [#]} Ke8 $1 {[%emt 0:00:49] aiming for ...Rg7+.} 51. e5 $2 {[%emt 0:00:45] [#]} (51. exd5 Nxd5 52. Qb8+ (52. Bg6 Qc1+ 53. Kh5 Nf4+ 54. Kh4 Nxg6+ 55. Qxg6 Qh1+ 56. Rh3 Qe1+ 57. Kh5 Qe2+ 58. Kh4 Qe7+ 59. Kh5 Kd8 $19) 52... Kd7 53. Qxb7+ Nc7 54. Bf5+ Kd6 55. Qb8 Rg7+ 56. Kf6 Qh6+ 57. Rg6 Rxg6+ 58. Bxg6 Qf4+ 59. Bf5 Qxd4+ 60. Kf7) 51... Nc8 $1 {[%emt 0:01:57]} 52. Qe6+ {[%emt 0:00:28]} Re7 {[%emt 0:00:02]} ({Inferior is} 52... Ne7 53. Bg6 Qf1 54. Bxf7+ Qxf7 55. Qxf7+ Kxf7 56. Rf3+ Ke6 57. Rf8 $11) 53. Qg8+ {[%emt 0:00:25]} Kd7 {[%emt 0:00:04]} 54. Kf6 {[%emt 0:00:32]} (54. Bf5+ $142 Kc7 55. Qf8 Qc1+ 56. Kg6) 54... Qh6+ {[%emt 0:01:23]} 55. Rg6 {[%emt 0:00:33]} Qf4+ {[%emt 0:00:15]} 56. Bf5+ {[%emt 0:00:05]} Kc7 {[%emt 0:00:02]} 57. Rg4 {[%emt 0:00:56]} Qh6+ {[%emt 0:01:04]} 58. Rg6 {[%emt 0:00:06]} Qf4 {[%emt 0:01:07]} 59. Rg4 $1 {[%emt 0:00:07]} Qf2 {[%emt 0:00:41]} 60. Qf8 {[%emt 0:01:02]} (60. Qg5 $142 Qxb2 61. Bxc8 Qxa3 62. Be6) 60... Kb6 {[%emt 0:00:02]} 61. Qd8+ {[%emt 0:00:50]} Ka7 {[%emt 0:00:11][%cal Oe7f7] Threatens to win with ...Rf7+!} 62. Kg6 {[%emt 0:00:23]} Kb8 {[%emt 0:01:31]} 63. Rg5 {[%emt 0:00:32]} Qh4 {[%emt 0:00:08] ( -> ...Qh7+)} 64. Qf8 {[%emt 0:00:28]} Rc7 {[%emt 0:00:32] And now ...Ka7 would win.} 65. Rg4 {[%emt 0:00:35]} Qe7 {[%emt 0:00:26]} 66. Qf6 {[%emt 0:00:34]} Qh7+ {[%emt 0:00:20]} 67. Kg5 {[%emt 0:00:03]} Rg7+ {[%emt 0:00:15]} 68. Kf4 {[%emt 0:00:35]} Qh2+ {[%emt 0:00:05]} 69. Kf3 {[%emt 0:00:18]} Rxg4 {[%emt 0:00:55]} 70. Bxg4 {[%emt 0:00:09]} Qxb2 {[%emt 0:00:30]} 71. Bxc8 {[%emt 0:00:41]} Qxa3+ {[%emt 0:00:13]} 72. Kf4 {[%emt 0:01:12]} Qc1+ {[%emt 0:00:04]} 73. Kf3 {[%emt 0:00:09]} Bxc8 {[%emt 0:00:05] Black used his chance.  Weighted Error Value: White=0.48/Black=0.42} 0-1

[Event "ESP-chT Honor Division 2022"]
[Site "Linares"]
[Date "2022.09.22"]
[Round "6.22"]
[White "Yuffa, Daniil"]
[Black "Forcen Esteban, Daniel"]
[Result "1/2-1/2"]
[ECO "D30"]
[WhiteElo "2600"]
[BlackElo "2580"]
[Annotator "TA"]
[PlyCount "120"]
[EventDate "2022.09.17"]
[EventType "team-tourn"]
[EventCountry "ESP"]
[SourceTitle "playchess.com"]
[Source "ChessBase"]
[SourceQuality "1"]
[TimeControl "5400+30"]

{[%evp 12,120,17,20,43,40,19,35,46,51,52,31,53,48,50,19,23,-44,-38,-61,-53,-65,-50,-50,-62,-58,-55,-50,-52,-47,0,-5,0,0,21,24,12,15,15,16,22,14,19,15,17,5,13,0,8,0,18,19,29,37,37,22,37,29,107,101,194,1,6,1,1,0,5,7,36,36,36,1,1,1,1,1,1,1,1,1,1,0,0,0,0,0,0,0,0,0,1,1,1,1,1,1,7,1,8,8,8,8,8,8,8,8,8,8,8,0,0]} 1. d4 {[%emt 0:02:38]} d5 {[%emt 0:00:12]} 2. c4 {[%emt 0:00:06]} e6 {[%emt 0:00:03]} 3. Nf3 {[%emt 0:00:09]} Nf6 {[%emt 0:00:06]} 4. g3 {[%emt 0:00:04]} Bb4+ {[%emt 0:01:32]} 5. Bd2 {[%emt 0:00:06]} a5 {[%emt 0:00:52]} 6. Qc2 {[%emt 0:00:13]} O-O {[%emt 0:00:07]} 7. Bg2 {[%emt 0:00:08]} c5 {[%emt 0:00:06] E11: Bogo-Indian.} 8. dxc5 {[%emt 0:00:09]} d4 {[%emt 0:00:32]} 9. Bxb4 {[%emt 0:00:08]} axb4 {[%emt 0:00:05] White is slightly better.} 10. Ne5 {[%emt 0:00:06] Against Nc6} Qc7 {[%emt 0:00:39]} 11. Nd3 {[%emt 0:00:42]} Nc6 {[%emt 0:00:04]} 12. Nd2 {[%emt 0:00:29]} e5 {[%emt 0:00:27][%cal Be6e5,Be5e4][%mdl 32] [#]} 13. O-O $146 {[%emt 0:08:12]} ({Predecessor:} 13. Ne4 Nxe4 14. Bxe4 f5 15. Bd5+ Kh8 16. Qd2 Rd8 17. Nxb4 Ra4 18. Bxc6 bxc6 19. b3 {½-½ (38) Meskovs,N (2561)-Moussard,J (2630) Germany 2022}) 13... Bf5 {[%emt 0:00:31]} 14. Nb3 {[%emt 0:00:19]} (14. Qb3 $11) 14... e4 $15 {[%emt 0:03:56][%mdl 1024] Black has compensation.} 15. Nf4 {[%emt 0:00:39]} Qe5 {[%emt 0:00:07] Prevents Nd5.} 16. Qc1 {[%emt 0:10:58]} h6 {[%emt 0:10:29]} 17. f3 {[%emt 0:15:35]} Rfe8 {[%emt 0:02:08]} 18. fxe4 {[%emt 0:06:02]} Bxe4 {[%emt 0:00:20]} 19. Bf3 {[%emt 0:04:36]} Bxf3 {[%emt 0:32:22]} 20. exf3 {[%emt 0:12:14]} g5 {[%emt 0:00:36]} (20... Nh5 $1 $15 {deserves consideration.}) 21. Nd3 {[%emt 0:02:20]} Qe2 {[%emt 0:00:22]} 22. Qd1 {[%emt 0:05:19]} g4 {[%emt 0:14:00]} 23. Qxe2 {[%emt 0:05:07]} Rxe2 {[%emt 0:00:18]} 24. Rae1 {[%emt 0:00:24]} Rxe1 {[%emt 0:15:37]} 25. Rxe1 {[%emt 0:00:11]} gxf3 {[%emt 0:00:06]} 26. Kf2 {[%emt 0:00:29]} Rxa2 {[%emt 0:00:54]} 27. Kxf3 {[%emt 0:00:26]} Ra8 {[%emt 0:00:14]} 28. Kf4 {[%emt 0:11:07]} Kg7 {[%emt 0:01:01]} 29. Nd2 {[%emt 0:01:16]} Nd7 {[%emt 0:07:20]} 30. g4 {[%emt 0:03:26]} Nf8 {[%emt 0:02:00]} 31. Kg3 {[%emt 0:02:19]} Ng6 {[%emt 0:01:32]} 32. h4 {[%emt 0:01:57]} f6 {[%emt 0:00:17]} 33. Nf3 {[%emt 0:00:30]} Ra2 {[%emt 0:04:49][%cal Og6e5]} 34. Re6 {[%emt 0:01:46] Strongly threatening Rd6.} Nge5 {[%emt 0:01:05]} (34... Kf7 $1 $11 {keeps the balance.} 35. Rd6 Nge5 36. Nfxe5+ Nxe5 37. Rxd4 Nxd3 38. Rxd3 Rxb2) 35. Nfxe5 $16 {[%emt 0:02:17]} Nxe5 {[%emt 0:00:04]} (35... fxe5 $16 36. h5 Kh7) 36. Nxe5 $2 {[%emt 0:01:07]} (36. Re7+ $18 Kf8 37. Rxb7 Nxd3 38. c6) 36... fxe5 $11 {[%emt 0:00:04]} 37. Rxe5 {[%emt 0:01:17] [#] Re7+ is the strong threat.} Rxb2 $16 {[%emt 0:00:03][%mdl 4096] Endgame KR-KR} 38. Re7+ {[%emt 0:00:47]} Kf6 {[%emt 0:00:05]} 39. Rxb7 {[%emt 0:00:03]} b3 {[%emt 0:01:14]} 40. c6 {[%emt 0:00:56]} Ke6 {[%emt 0:02:46]} 41. g5 {[%emt 0:00:52]} hxg5 {[%emt 0:00:10] The position is equal.} 42. hxg5 {[%emt 0:00:04] [#] White wants to mate with g6.} Rb1 $1 {[%emt 0:00:40]} 43. Kf2 $1 {[%emt 0:01:42]} Rb2+ $1 {[%emt 0:01:04]} 44. Kf3 {[%emt 0:00:52] Intending c7 and mate.} Rb1 $1 {[%emt 0:00:01]} 45. g6 {[%emt 0:00:56] Threatening mate with c7.} Rg1 {[%emt 0:00:23]} 46. Ke4 {[%emt 0:01:33]} Rg4+ {[%emt 0:00:30]} 47. Kd3 {[%emt 0:00:08]} Rxg6 {[%emt 0:00:33]} (47... Kd6 {keeps more tension.} 48. c7 Kd7 49. g7 Rg3+) 48. Kxd4 {[%emt 0:00:18] And now c5 would win.} Rg4+ {[%emt 0:00:45]} 49. Kc5 {[%emt 0:00:21]} (49. Kc3 $5 {[%cal Rc4c5]} b2 50. Rxb2 $11 (50. c5 Kd5 $11)) 49... Rg5+ {[%emt 0:00:03]} 50. Kd4 {[%emt 0:00:50] aiming for c5.} (50. Kb6 $5 {[%cal Rc6c7]} b2 51. Ka6 $11) 50... Kd6 {[%emt 0:00:22] Prevents c5+.} 51. c7 {[%emt 0:00:22]} Kd7 {[%emt 0:00:02]} 52. Rxb3 {[%emt 0:00:37]} Kxc7 {[%emt 0:00:04]} 53. Rh3 {[%emt 0:00:08]} Rg6 {[%emt 0:00:06]} 54. Rh5 {[%emt 0:00:18]} Kd7 {[%emt 0:00:30]} 55. Kc5 {[%emt 0:00:06]} Kc7 {[%emt 0:00:03]} 56. Rh7+ {[%emt 0:00:09]} Kc8 {[%emt 0:00:05]} 57. Kb5 {[%emt 0:00:07]} Rf6 {[%emt 0:00:05]} 58. c5 {[%emt 0:00:17]} Rg6 {[%emt 0:00:04]} 59. Rf7 {[%emt 0:00:11]} Rh6 {[%emt 0:00:04]} 60. c6 {[%emt 0:00:05]} Rh1 {[%emt 0:00:03] Weighted Error Value: White=0.11 (very precise) /Black=0.09 (flawless)} 1/2-1/2

[Event "ESP-chT Honor Division 2022"]
[Site "Linares"]
[Date "2022.09.22"]
[Round "6.23"]
[White "Buksa, Nataliya"]
[Black "Ibarra Jerez, Jose Carlos"]
[Result "1/2-1/2"]
[ECO "B30"]
[WhiteElo "2407"]
[BlackElo "2570"]
[Annotator "TA"]
[PlyCount "83"]
[EventDate "2022.09.17"]
[EventType "team-tourn"]
[EventCountry "ESP"]
[SourceTitle "playchess.com"]
[Source "ChessBase"]
[SourceQuality "1"]
[TimeControl "5400+30"]

{[%evp 10,83,25,19,35,40,31,32,31,35,28,25,36,8,8,6,12,12,13,-15,-13,-22,-12,-11,-9,-108,-96,-102,-106,-122,-132,-110,-87,-105,-97,-122,-104,-246,-183,-168,-174,-192,0,-64,-69,-70,-26,-18,-21,-38,9,0,62,63,73,71,111,75,92,0,0,0,0,-22,-22,-25,-20,-22,-18,-22,-22,-31,0,0,0,0]} 1. e4 c5 {[%emt 0:04:02]} 2. Nf3 {[%emt 0:00:35]} Nc6 {[%emt 0:00:27]} 3. Bb5 {[%emt 0:00:24]} e6 {[%emt 0:00:24]} 4. O-O {[%emt 0:00:45]} Nge7 {[%emt 0:00:23]} 5. d4 {[%emt 0:00:27]} cxd4 {[%emt 0:00:41]} 6. Nxd4 {[%emt 0:00:03]} Ng6 {[%emt 0:01:02] B30: Sicilian: 2...Nc6 3 Bb5, lines without ...g6.} 7. Be3 {[%emt 0:04:01]} Be7 {[%emt 0:00:56]} 8. Be2 {[%emt 0:00:36]} O-O {[%emt 0:01:26] White is slightly better.} 9. c4 {[%emt 0:00:03]} b6 $1 {[%emt 0:00:26][%mdl 4] is recently more successful than 9...Nxd4.} 10. Nc3 {[%emt 0:00:04]} Bb7 {[%emt 0:00:10]} 11. Nxc6 {[%emt 0:12:47]} Bxc6 {[%emt 0:01:42]} 12. Qd2 {[%emt 0:01:05]} f5 {[%emt 0:02:11]} 13. exf5 {[%emt 0:04:59]} Nh4 {[%emt 0:01:06]} 14. f3 {[%emt 0:01:28]} Nxf5 {[%emt 0:01:52]} 15. Bf2 {[%emt 0:00:09]} Bg5 {[%emt 0:01:53] [#]} 16. f4 $146 {[%emt 0:14:15]} ({Predecessor:} 16. Qd3 Bf4 17. Ne4 Qc7 18. g3 Be5 19. Rab1 d5 20. Ng5 Qe7 21. f4 dxc4 22. Qxc4 {½-½ (35) Kobalia,M (2614)-Gelfand,B (2676) Chess.com INT 2020}) 16... Bh6 {[%emt 0:05:20]} 17. g4 {[%emt 0:21:17]} (17. Rae1 $11 {keeps the balance.}) 17... e5 $1 $17 {[%emt 0:02:33][%cal Be6e5,Be5f4,Bf4e3][%mdl 32]} 18. Nd5 {[%emt 0:05:05]} (18. gxf5 $2 Bxf4 19. Qd1 (19. Qd3 $2 Qg5+ 20. Bg4 Qxg4+ 21. Bg3 Rxf5 $19) 19... Qg5+ 20. Bg4 h5 $19) (18. g5 $2 exf4 19. Qxf4 Bxg5 $19) 18... exf4 {[%emt 0:32:39][%cal Of4f3] ...f3! is the strong threat.} 19. Bf3 {[%emt 0:08:45]} Ne3 {[%emt 0:03:08]} 20. Qd3 {[%emt 0:04:37][%cal Rd5e3]} Bg5 {[%emt 0:05:22]} 21. Be4 {[%emt 0:02:05] [#]} Kh8 $1 {[%emt 0:06:36]} 22. Bxe3 {[%emt 0:06:11]} fxe3 {[%emt 0:00:25]} 23. Bxh7 {[%emt 0:00:03]} (23. Bg2 $17) 23... Bxd5 {[%emt 0:07:49]} 24. cxd5 {[%emt 0:00:39]} Bh4 {[%emt 0:00:30] Strongly threatening ...Qg5.} (24... e2 25. Rfe1 $14) 25. Rf5 {[%emt 0:03:10] [#] Inhibits Qg5.} Bf2+ $2 {[%emt 0:08:20]} (25... e2 26. Rh5 Qf6 27. Qxe2 Qd4+ 28. Kh1 $18) (25... Rxf5 $1 $19 26. Bxf5 Qe8) 26. Kg2 {[%emt 0:00:25]} (26. Kf1 $1 $11 Bh4 27. Ke2) 26... Qh4 $15 {[%emt 0:00:15]} 27. Qe4 {[%emt 0:02:24]} Rxf5 {[%emt 0:01:43]} ({Of course not} 27... Qxh7 28. Rh5 Qxh5 29. gxh5 $11) (27... Be1 $5 {[%cal Rf8f5]} 28. d6 Rxf5 29. Qxf5 (29. Bxf5 $2 Qf2+ 30. Kh3 Rf8 $19) 29... Bb4 $15) 28. Bxf5 {[%emt 0:00:04]} Rf8 {[%emt 0:01:43][%cal Og7g6] aiming for ...g6!} 29. Rf1 {[%emt 0:01:46]} d6 {[%emt 0:01:39]} (29... Qf6 $15 {deserves consideration.} 30. Bxd7 Qxb2) 30. Rc1 {[%emt 0:00:43]} Qf6 {[%emt 0:01:34]} ({Better is} 30... g6 $11 31. Qd4+ (31. Bxg6 $2 Bg3 $19) 31... Rf6 32. Rc8+ Kg7 33. Rc7+ (33. Bd3 $2 e2 $19) 33... Kf8 34. Rc8+ Kg7 35. Rc7+ (35. Bd3 $2 e2 $19) 35... Kf8 36. Rc8+ Kg7) 31. Rc2 $1 $14 {[%emt 0:03:08]} a5 {[%emt 0:01:35]} 32. a4 {[%emt 0:00:07]} Qh6 {[%emt 0:01:57]} 33. Qe7 {[%emt 0:03:53][%cal Re7f8]} Rg8 {[%emt 0:03:05]} 34. Rc4 {[%emt 0:00:28] Chess con chili. Active counter play!} (34. Rc8 $16 {Rxg8+ would kill now.} Rxc8 35. Bxc8) 34... Bh4 $11 {[%emt 0:00:12][%cal Bf2h4,Bh4g5,Bg5f6][%mdl 32]} 35. Qe4 {[%emt 0:00:34]} Bg5 {[%emt 0:00:32]} 36. Rc1 {[%emt 0:00:19]} g6 {[%emt 0:00:36]} 37. Qd4+ {[%emt 0:00:52]} Qg7 {[%emt 0:00:21]} 38. Qxg7+ {[%emt 0:00:23]} Kxg7 {[%emt 0:00:08]} 39. Be6 {[%emt 0:00:22]} Rf8 {[%emt 0:02:30] Threatens to win with ...Rf2+.} 40. Rf1 {[%emt 0:00:17] Against Rf2+} Bf6 {[%emt 0:00:33]} 41. Rf3 {[%emt 0:00:15]} Bd4 {[%emt 0:00:27] ( -> ...e2)} 42. Rxf8 {[%emt 0:00:09] Weighted Error Value: White=0.21 (precise) /Black=0.16 (very precise)} 1/2-1/2

[Event "ESP-chT Honor Division 2022"]
[Site "Linares"]
[Date "2022.09.23"]
[Round "7.1"]
[White "Fedoseev, Vladimir"]
[Black "Shirov, Alexei"]
[Result "1/2-1/2"]
[ECO "D43"]
[WhiteElo "2685"]
[BlackElo "2673"]
[Annotator "TA"]
[PlyCount "92"]
[EventDate "2022.09.17"]
[EventType "team-tourn"]
[EventCountry "ESP"]
[SourceTitle "playchess.com"]
[Source "ChessBase"]
[SourceQuality "1"]
[TimeControl "5400+30"]

{[%evp 14,92,12,14,27,14,37,37,33,21,18,0,0,12,23,16,27,26,38,31,26,30,32,23,33,30,32,39,101,95,114,106,219,213,203,202,205,226,228,219,235,200,186,167,370,353,375,372,430,429,413,395,504,478,5628,5564,29958,29963,29963,29962,29961,29962,29962,29950,29961,8,1178,1111,376,8,8,8,8,8,8,8,8,0,8,8,115]} 1. d4 {[%emt 0:01:18]} d5 {[%emt 0:00:07]} 2. c4 {[%emt 0:00:06]} c6 {[%emt 0:00:04]} 3. Nf3 {[%emt 0:00:09]} Nf6 {[%emt 0:00:05]} 4. Nc3 {[%emt 0:00:09]} e6 {[%emt 0:00:05]} 5. cxd5 {[%emt 0:00:29]} exd5 {[%emt 0:00:08]} 6. Bf4 {[%emt 0:00:05]} Bd6 {[%emt 0:01:28]} 7. Bxd6 {[%emt 0:00:11]} Qxd6 {[%emt 0:00:06]} 8. e3 {[%emt 0:00:08]} Bg4 {[%emt 0:05:03] D35: Queen's Gambit Declined: Exchange Variation.} 9. Qb3 {[%emt 0:00:13] [#]} Nbd7 $146 {[%emt 0:02:22]} ({Predecessor:} 9... Qe7 10. Ne5 O-O 11. Nxg4 Nxg4 12. Be2 Nf6 13. O-O a5 14. a4 Qb4 15. Qa3 Na6 16. Bxa6 Rxa6 {0-1 (33) Soros,G (1984)-Kristof,P (2137) Hungary 2012}) 10. Qxb7 {[%emt 0:07:44]} O-O {[%emt 0:02:01] White is slightly better.} 11. Qa6 {[%emt 0:00:36]} Rab8 {[%emt 0:00:12]} 12. Qa3 {[%emt 0:08:06]} Qxa3 {[%emt 0:02:04]} 13. bxa3 {[%emt 0:00:01]} Bxf3 {[%emt 0:00:06]} 14. gxf3 {[%emt 0:00:03]} c5 {[%emt 0:00:05]} 15. dxc5 {[%emt 0:05:49]} Rfc8 {[%emt 0:04:13]} 16. Nb5 Rxc5 {[%emt 0:00:31]} 17. Nd4 {[%emt 0:07:02]} Rb2 {[%emt 0:21:39]} 18. Be2 {[%emt 0:12:27][%cal Bf1e2,Be2d1,Bd1b3][%mdl 32]} Ra5 {[%emt 0:09:06]} 19. Bd1 {[%emt 0:01:35]} Rxa3 {[%emt 0:19:42]} 20. Bb3 {[%emt 0:00:09] Threatens to win with Rf1.} Ra5 {[%emt 0:00:34]} (20... Nc5 $14 21. O-O h6) 21. Nc2 $1 $16 {[%emt 0:10:11]} Ne5 {[%emt 0:07:01]} 22. O-O-O {[%emt 0:00:09]} Rxc2+ {[%emt 0:00:13]} 23. Kxc2 $18 {[%emt 0:00:09]} Nxf3 {[%emt 0:00:53]} 24. e4 {[%emt 0:06:23]} d4 {[%emt 0:09:19]} 25. Rd3 {[%emt 0:00:12]} Ne5 {[%emt 0:00:04] White must now prevent ...Rc5+.} 26. Rxd4 {[%emt 0:00:11] Rd8+ would kill now.} g5 {[%emt 0:00:04]} 27. h3 {[%emt 0:08:01]} Kg7 {[%emt 0:02:01]} 28. Rc1 {[%emt 0:01:53]} Nc6 $2 {[%emt 0:06:01]} (28... Rc5+ {was worth a try.} 29. Kd1 Rxc1+ 30. Kxc1 Nh5) 29. Ra4 {[%emt 0:03:00]} Rxa4 {[%emt 0:01:23]} 30. Bxa4 {[%emt 0:00:01][%mdl 4096] Endgame KRB-KNN} Nb4+ {[%emt 0:00:11]} 31. Kd2 {[%emt 0:02:16]} ({Not} 31. Kb3 Nd3 32. Rc7 Nxe4 $18) 31... Nxe4+ {[%emt 0:02:36]} 32. Ke3 {[%emt 0:00:08]} Nxa2 {[%emt 0:00:12]} 33. Rc2 {[%emt 0:00:15]} Nb4 {[%emt 0:00:45]} (33... Nac3 $142 34. Bb3 f5) 34. Kxe4 {[%emt 0:05:18]} Nxc2 {[%emt 0:00:05]} 35. Bxc2 {[%emt 0:00:05] KB-KP} Kf6 {[%emt 0:00:04]} 36. Kd5 {[%emt 0:00:19]} h6 {[%emt 0:01:47]} 37. Kd6 {[%emt 0:05:08]} a6 {[%emt 0:01:20]} 38. Bb3 {[%emt 0:00:47]} a5 {[%emt 0:02:34]} 39. Bd1 $2 {[%emt 0:01:13]} (39. Bc2 $1 {mates} g4 40. hxg4 Kg5 41. Bd1 f5 42. gxf5 Kf6 43. Kc5 Kxf5 44. Kb5) 39... Kf5 $11 {[%emt 0:01:02] [#]} 40. Ke7 $1 {[%emt 0:00:40]} Kg6 {[%emt 0:00:21] [#]} 41. Bc2+ $2 {[%emt 0:06:44]} (41. Kd7 $1 $18 {[%cal Rd7e7] Ke7 is the strong threat.} Kf6 42. Ke8) 41... Kh5 {[%emt 0:02:13] The position is equal.} 42. Kxf7 {[%emt 0:04:51]} Kh4 {[%emt 0:00:09]} 43. Bf5 {[%emt 0:00:25]} h5 {[%emt 0:00:31]} 44. Kf6 {[%emt 0:05:14]} g4 {[%emt 0:00:17]} 45. Ke5 {[%emt 0:01:00] Intending hxg4 and mate.} g3 {[%emt 0:01:39]} (45... gxh3 46. Kd4 h2 47. Be4 $18) 46. fxg3+ {[%emt 0:00:47]} Kxg3 {[%emt 0:00:10] Black defended with fortune.  Weighted Error Value: White=0.42/Black=0.34} 1/2-1/2